bitfinex-derivatives/quotes_ETHF0:USTF0_20241024
["timestamp","ask_amount","ask_price","bid_price","bid_amount"]
[1729794682862,0.84071,2530.7,2530.3,1.82385]
[1729794682863,0.39543,2530.6,2530.5,0.39542]
[1729794688267,0.39543,2530.6,2530.3,1.82385]
[1729794688268,4.04852,2530.7,2530.6,0.39542]
[1729794689362,3.2078,2530.7,2530.6,0.39542]
[1729794689565,1.64743,2531.2,2531.1,0.39534]
[1729794690571,1.2521,2531.2,2531.1,0.39534]
[1729794690766,3.2078,2531.6,2531.5,0.39527]
[1729794691066,3.2078,2531.6,2531.0,6.80982893]
[1729794691067,3.2078,2531.6,2531.2,0.4231]
[1729794691267,0.3953,2531.4,2531.3,0.39529]
[1729794691964,1.2349,2531.5,2531.4,0.39529]
[1729794691965,1.63018,2531.5,2531.4,0.39529]
[1729794693460,1.2349,2531.5,2531.2,0.4231]
[1729794693667,0.3953,2531.4,2531.3,0.39529]
[1729794694866,1.2349,2531.5,2531.2,0.4231]
[1729794695070,1.2349,2531.5,2531.0,5.02028]
[1729794695071,0.39533,2531.2,2531.1,0.39532]
[1729794696870,2.77792893,2531.2,2530.6,0.98854]
[1729794697074,0.39538,2530.9,2530.8,0.39537]
[1729794697369,0.8666,2531.1,2530.7,1.8559]
[1729794697571,1.26195,2531.1,2531.0,0.39535]
[1729794697760,5.21315,2531.1,2531.0,0.39535]
[1729794698567,4.77605,2531.1,2531.0,0.39535]
[1729794698772,0.39532,2531.3,2531.2,0.3953]
[1729794699064,0.39532,2531.3,2531.0,8.14737]
[1729794699065,0.3953,2531.4,2531.3,0.39529]
[1729794699461,0.4082,2531.5,2531.2,0.8305]
[1729794699657,0.39528,2531.5,2531.4,0.39529]
[1729794704266,0.39531,2531.4,2531.3,0.3953]
[1729794707374,0.39529,2531.5,2531.4,0.39528]
[1729794708371,0.39526,2531.7,2531.6,0.39525]
[1729794708568,8.24851893,2531.8,2531.2,0.8305]
[1729794708768,8.24851893,2531.8,2531.4,0.39528]
[1729794708769,0.39529,2531.5,2531.4,0.39528]
[1729794710576,7.26042893,2531.8,2531.2,1.81881]
[1729794710777,0.39527,2531.6,2531.5,0.39526]
[1729794712370,7.26042893,2531.8,2531.2,0.8305]
[1729794712577,7.26042893,2531.8,2531.6,0.39524]
[1729794712578,0.39525,2531.7,2531.6,0.39524]
[1729794712772,7.26042893,2531.8,2531.7,0.39524]
[1729794712773,4.87773,2531.8,2531.7,0.39524]
[1729794713980,4.87773,2531.8,2531.7,0.80404]
[1729794714373,6.15919146,2531.8,2531.7,0.80404]
[1729794714770,5.72209146,2531.8,2531.7,0.80404]
[1729794715374,4.88449146,2531.8,2531.7,0.80404]
[1729794715579,4.88449146,2531.8,2531.7,1.21064]
[1729794715781,3.2078,2531.8,2531.7,2.49210146]
[1729794716379,3.2078,2531.8,2531.7,5.16024]
[1729794716687,0.4063,2532.2,2532.1,0.39518]
[1729794716688,0.80148,2532.2,2532.1,0.39518]
[1729794716890,0.46963668,2532.2,2532.1,0.39518]
[1729794717077,0.4063,2532.2,2532.1,0.39518]
[1729794717473,0.80147,2532.2,2532.1,0.39518]
[1729794717781,0.4063,2532.2,2532.1,0.39518]
[1729794718685,0.80147,2532.2,2532.1,0.39518]
[1729794718890,0.4063,2532.2,2532.1,0.39518]
[1729794719078,0.80147,2532.2,2532.1,0.39518]
[1729794719284,0.4063,2532.2,2532.1,0.39518]
[1729794719581,0.8543,2532.4,2532.3,0.39515]
[1729794719582,1.24944,2532.4,2532.3,0.39515]
[1729794719780,1.31276786,2532.4,2532.3,0.39515]
[1729794720681,1.24944,2532.4,2532.3,0.39515]
[1729794720882,4.86642772,2532.4,2532.0,3.6366]
[1729794721178,0.39518,2532.2,2532.1,0.39517]
[1729794721986,0.39518,2532.2,2532.0,3.2078]
[1729794721987,0.39518,2532.1,2532.0,3.2078]
[1729794722183,0.39524,2531.7,2531.6,3.60306]
[1729794722382,0.988,2532.0,2531.5,0.39526]
[1729794722383,0.39528,2531.6,2531.5,0.39526]
[1729794722779,0.39528,2531.6,2531.3,4.0319]
[1729794722780,0.39529,2531.4,2531.3,4.0319]
[1729794723082,0.4072,2531.5,2531.3,3.6366]
[1729794723287,0.80249,2531.5,2531.4,0.39529]
[1729794723685,0.4072,2531.5,2531.3,3.6366]
[1729794723885,0.39529,2531.4,2531.3,4.03189]
[1729794724284,0.39529,2531.4,2531.3,3.2078]
[1729794724494,2.7761355,2531.4,2531.1,0.4219]
[1729794724684,0.39532,2531.2,2531.1,0.81723]
[1729794724879,0.4334,2531.3,2531.0,4.03974]
[1729794725093,0.80254,2531.1,2531.0,4.03974]
[1729794725486,0.4072,2531.1,2531.0,4.03974]
[1729794725883,0.80254,2531.1,2531.0,4.03974]
[1729794726890,0.4072,2531.1,2531.0,4.03974]
[1729794728091,0.39532,2531.3,2531.2,0.3953]
[1729794729386,0.426,2531.5,2531.1,0.4158]
[1729794729586,0.39526,2531.6,2531.5,0.39527]
[1729794729993,0.8828,2531.7,2531.4,0.39527]
[1729794729994,0.39529,2531.5,2531.4,0.39527]
[1729794730494,0.8828,2531.7,2531.2,3.2126355]
[1729794730795,0.39529,2531.5,2531.4,0.39528]
[1729794730983,0.8828,2531.7,2531.4,0.39528]
[1729794731190,0.39527,2531.6,2531.5,0.39526]
[1729794731386,0.39527,2531.6,2531.2,4.2009355]
[1729794731592,0.39529,2531.5,2531.4,0.39528]
[1729794732094,0.8828,2531.7,2531.2,4.2009355]
[1729794732293,0.39527,2531.6,2531.5,0.39526]
[1729794733398,0.8828,2531.7,2531.4,0.39527]
[1729794733399,0.39529,2531.5,2531.4,0.39527]
[1729794735198,0.39528,2531.6,2531.5,0.39526]
[1729794736201,0.39529,2531.5,2531.4,0.39527]
[1729794737503,0.39527,2531.6,2531.5,0.39526]
[1729794737900,0.39527,2531.6,2531.0,3.2078]
[1729794737901,6.7265355,2531.6,2531.0,3.2078]
[1729794738108,0.39535,2531.1,2531.0,0.39534]
[1729794740506,1.39877,2531.3,2530.9,4.1962]
[1729794740507,0.4105,2531.3,2530.9,4.1962]
[1729794740703,0.39534,2531.2,2531.1,0.39532]
[1729794744018,0.39534,2531.2,2531.1,3.60312]
[1729794744215,0.39531,2531.4,2531.3,0.39529]
[1729794747017,0.39531,2531.3,2531.2,0.81441]
[1729794748117,0.39531,2531.3,2531.2,0.39531]
[1729794748316,0.98825,2531.4,2531.0,0.39535]
[1729794748613,0.98825,2531.4,2531.1,0.39532]
[1729794748614,0.81253,2531.2,2531.1,0.39532]
[1729794749719,1.24673,2531.2,2531.1,0.39532]
[1729794750723,0.39535,2531.1,2531.0,0.39534]
[1729794754125,0.4172,2531.2,2530.9,0.4244]
[1729794754321,0.81254,2531.2,2531.1,0.39534]
[1729794755226,0.4172,2531.2,2531.0,3.2078]
[1729794755425,0.39534,2531.1,2531.0,3.60314]
[1729794756921,0.8489,2531.2,2530.9,0.4244]
[1729794757121,0.39535,2531.0,2530.9,0.81975]
[1729794757324,0.39535,2531.0,2530.9,0.39535]
[1729794759529,0.82465,2531.1,2531.0,0.39535]
[1729794759934,4.77585,2531.1,2531.0,0.39535]
[1729794760323,6.0577812,2531.1,2531.0,0.39535]
[1729794761029,1.6772412,2531.4,2531.3,0.39529]
[1729794762327,0.39531,2531.4,2531.3,0.39529]
[1729794765425,0.8353,2531.5,2531.4,0.39529]
[1729794765732,1.23057,2531.5,2531.4,0.39529]
[1729794765934,1.23057,2531.5,2531.4,0.80079]
[1729794769529,1.23057,2531.5,2531.0,3.2078]
[1729794769530,0.8353,2531.5,2531.0,3.2078]
[1729794769736,0.39533,2531.2,2531.1,0.39531]
[1729794769932,0.4379,2531.4,2531.0,4.0841]
[1729794770134,0.83321,2531.4,2531.3,0.39531]
[1729794770331,0.39531,2531.4,2531.3,0.39531]
[1729794773935,0.8353,2531.5,2531.0,5.07245]
[1729794774138,0.39532,2531.3,2531.2,0.39531]
[1729794780544,2.77727663,2531.4,2531.1,3.2078]
[1729794780737,0.39534,2531.1,2531.0,0.83625]
[1729794781136,0.80494,2531.1,2531.0,0.83625]
[1729794782344,1.68547555,2531.2,2531.1,0.39534]
[1729794782546,1.28167555,2531.2,2531.1,0.39534]
[1729794782844,0.4096,2531.5,2531.3,0.39531]
[1729794782845,0.7991,2531.4,2531.3,0.39531]
[1729794783043,0.7991,2531.4,2531.3,3.60311]
[1729794783044,2.08077555,2531.4,2531.3,3.60311]
[1729794786548,2.08077555,2531.4,2531.3,4.03821]
[1729794789351,1.68547555,2531.4,2531.3,4.03821]
[1729794789644,1.28167555,2531.4,2531.3,5.31988555]
[1729794790046,1.67696555,2531.4,2531.3,5.31988555]
[1729794791451,1.28167555,2531.4,2531.3,5.31988555]
[1729794791846,1.28167555,2531.4,2531.3,4.03821]
[1729794793347,1.67696555,2531.4,2531.3,4.03821]
[1729794793555,1.28167555,2531.4,2531.3,4.03821]
[1729794793748,1.67696555,2531.4,2531.3,4.03821]
[1729794793946,1.28167555,2531.4,2531.3,4.03821]
[1729794794146,1.67696555,2531.4,2531.3,4.03821]
[1729794796148,1.28167555,2531.4,2531.3,4.03821]
[1729794796549,1.67696555,2531.4,2531.3,4.03821]
[1729794797761,1.28167555,2531.4,2531.3,4.03821]
[1729794798052,0.4067,2531.6,2531.5,0.39527]
[1729794798053,0.80196,2531.6,2531.5,0.39527]
[1729794798452,2.08363555,2531.6,2531.5,0.39527]
[1729794798655,2.08363555,2531.6,2531.5,0.81527]
[1729794800464,2.08363555,2531.6,2531.5,0.42]
[1729794800660,2.08363555,2531.6,2531.3,3.2078]
[1729794800661,2.9700511,2531.6,2531.3,3.2078]
[1729794800959,1.67696555,2531.4,2531.3,3.2078]
[1729794801358,2.09626555,2531.4,2531.3,3.2078]
[1729794802957,2.09626555,2531.4,2531.3,3.60311]
[1729794804855,2.09626555,2531.4,2531.3,0.39531]
[1729794805456,2.09626555,2531.4,2531.2,3.2078]
[1729794805457,0.39531,2531.3,2531.2,3.2078]
[1729794805768,0.39531,2531.3,2530.9,3.60315]
[1729794805769,0.39535,2531.0,2530.9,3.60315]
[1729794806056,1.67702555,2531.0,2530.9,3.60315]
[1729794806456,1.28167555,2531.0,2530.9,3.60315]
[1729794806658,0.4182,2531.3,2530.9,8.83604555]
[1729794806859,0.39528,2531.5,2531.4,0.39529]
[1729794807068,1.67695555,2531.5,2531.4,0.39529]
[1729794807366,1.28167555,2531.5,2531.4,0.39529]
[1729794807956,1.67694555,2531.5,2531.4,0.39529]
[1729794808156,2.09514555,2531.5,2531.4,0.39529]
[1729794808463,1.69987555,2531.5,2531.4,0.39529]
[1729794809364,2.09514555,2531.5,2531.4,0.39529]
[1729794810259,0.81347,2531.5,2531.4,0.39529]
[1729794810863,0.39529,2531.4,2531.3,1.66899]
[1729794812057,0.81349,2531.5,2531.4,0.39529]
[1729794813661,1.24774,2531.8,2531.7,0.39524]
[1729794813962,0.4088,2531.8,2531.7,0.39524]
[1729794814559,0.80403,2531.8,2531.7,0.39524]
[1729794814762,0.80403,2531.8,2531.7,0.83614]
[1729794817960,0.80403,2531.8,2531.7,0.4409]
[1729794818161,0.39526,2531.6,2531.5,3.60306]
[1729794820163,0.39526,2531.6,2531.5,0.39526]
[1729794820365,0.39526,2531.6,2531.5,3.60306]
[1729794829971,0.83056,2531.6,2531.5,3.60306]
[1729794830776,0.39526,2531.6,2531.5,3.60306]
[1729794831279,3.17222245,2531.6,2531.5,3.60306]
[1729794831985,3.17222245,2531.6,2531.5,3.2078]
[1729794832281,1.67691721,2531.6,2531.5,3.2078]
[1729794832875,2.95857442,2531.6,2531.5,3.2078]
[1729794833178,1.67691721,2531.6,2531.5,3.2078]
[1729794834577,1.67691721,2531.6,2531.5,3.60307]
[1729794841687,1.67691721,2531.6,2531.5,0.39527]
[1729794843589,0.39527,2531.5,2531.4,3.2078]
[1729794843786,2.53832721,2531.5,2531.4,3.2078]
[1729794846287,0.39529,2531.4,2531.3,3.2078]
[1729794846493,0.98832,2531.2,2530.9,3.60316]
[1729794846786,1.67700721,2531.0,2530.9,3.60316]
[1729794847186,1.67700721,2531.0,2530.9,3.2078]
[1729794847187,2.08810721,2531.0,2530.9,3.2078]
[1729794847389,0.3954,2530.7,2530.6,4.497]
[1729794847592,1.67705721,2530.7,2530.6,3.6404]
[1729794847984,2.09785721,2530.7,2530.6,3.6404]
[1729794848184,2.09785721,2530.7,2530.6,4.03582]
[1729794849487,2.09785721,2530.7,2530.6,0.82802]
[1729794850195,2.09785721,2530.7,2530.6,1.26022]
[1729794850797,0.39538,2530.9,2530.8,0.39537]
[1729794851097,1.67703721,2530.9,2530.8,0.39537]
[1729794852501,0.39539,2530.8,2530.7,0.39539]
[1729794852797,1.67704721,2530.8,2530.7,0.39539]
[1729794854399,1.28165721,2530.8,2530.6,1.305]
[1729794854597,0.3954,2530.8,2530.7,0.3954]
[1729794854798,1.67705721,2530.8,2530.7,0.3954]
[1729794856611,0.39538,2530.9,2530.6,1.305]
[1729794856815,0.39538,2530.9,2530.8,0.39538]
[1729794857009,1.67703721,2530.9,2530.8,0.39538]
[1729794858718,0.3954,2530.8,2530.7,0.39539]
[1729794858903,1.67705721,2530.8,2530.7,0.39539]
[1729794861026,1.28165721,2530.8,2530.6,1.305]
[1729794861320,1.67705721,2530.7,2530.6,1.7004]
[1729794863215,0.3954,2530.7,2530.6,1.7004]
[1729794863419,1.28165721,2530.7,2530.6,1.70042]
[1729794863717,1.67705721,2530.7,2530.6,1.70042]
[1729794867222,1.67705721,2530.7,2530.6,4.90822]
[1729794868322,0.39545,2530.4,2530.3,3.2078]
[1729794868520,0.39551,2530.0,2529.9,3.2078]
[1729794868721,1.28165721,2530.0,2529.6,0.4276]
[1729794868923,1.67721721,2529.7,2529.6,0.82317]
[1729794869528,1.28165721,2529.7,2529.6,0.82317]
[1729794870224,0.39556,2529.7,2529.6,0.82317]
[1729794870620,0.39555,2529.8,2529.7,0.39554]
[1729794871425,0.39555,2529.8,2529.6,0.4276]
[1729794871426,0.39556,2529.7,2529.6,0.4276]
[1729794874025,2.77869071,2529.8,2529.5,3.6332]
[1729794874221,0.39557,2529.6,2529.5,4.02879]
[1729794875229,0.39557,2529.7,2529.6,0.39556]
[1729794882437,0.39557,2529.7,2529.5,3.6332]
[1729794882438,3.17425071,2529.8,2529.7,0.39556]
[1729794883434,3.17425071,2529.8,2529.7,0.80526]
[1729794883941,3.17425071,2529.8,2529.7,0.4097]
[1729794884539,3.17425071,2529.8,2529.7,0.80526]
[1729794884839,2.77869071,2529.8,2529.6,0.79957]
[1729794885033,0.39556,2529.7,2529.6,0.39557]
[1729794885238,0.80766,2529.7,2529.6,0.39557]
[1729794890349,2.09024616,2529.7,2529.6,0.39557]
[1729794892647,0.4437,2529.9,2529.5,4.0685]
[1729794892839,0.83924,2529.9,2529.8,0.39554]
[1729794894541,2.12182616,2529.9,2529.8,0.39554]
[1729794895345,3.40441232,2529.9,2529.8,0.39554]
[1729794895645,2.12182616,2529.9,2529.8,0.39554]
[1729794900351,0.31232123,2530.2,2530.1,0.39548]
[1729794900352,0.3955,2530.2,2530.1,0.39548]
[1729794900653,2.12126616,2530.2,2530.1,0.39549]
[1729794901345,1.72578616,2530.2,2530.1,0.39549]
[1729794901547,1.28258616,2530.2,2530.1,0.39549]
[1729794903046,1.67806616,2530.2,2530.1,0.39549]
[1729794905860,0.39551,2530.1,2530.0,0.3955]
[1729794906052,2.11519616,2530.1,2530.0,0.3955]
[1729794906448,1.71968616,2530.1,2530.0,0.3955]
[1729794906647,2.11517616,2530.1,2530.0,0.3955]
[1729794907141,1.71968616,2530.1,2530.0,0.3955]
[1729794907349,1.67807616,2530.1,2530.0,0.3955]
[1729794909446,1.28258616,2530.1,2530.0,0.3955]
[1729794909955,1.67807616,2530.1,2530.0,0.3955]
[1729794910658,1.67807616,2530.1,2530.0,3.6033]
[1729794911251,3.2078,2531.0,2530.0,10.42070616]
[1729794911457,1.28258616,2530.6,2530.4,4.49038616]
[1729794911756,1.28258616,2530.6,2530.5,2.55168616]
[1729794911954,1.28258616,2530.6,2530.5,2.94711616]
[1729794912156,1.28258616,2530.6,2530.5,6.89911616]
[1729794912672,0.4279,2530.9,2530.6,0.39542]
[1729794912673,1.28258616,2530.7,2530.6,0.39542]
[1729794913157,0.4279,2530.9,2530.6,5.62920616]
[1729794913362,0.4359,2531.1,2530.8,4.49038616]
[1729794913553,44.99599,2531.6,2530.8,4.49038616]
[1729794913554,0.8742,2531.3,2531.2,0.39532]
[1729794913754,1.26951,2531.3,2531.2,0.39532]
[1729794914759,0.39532,2531.2,2531.1,3.6396]
[1729794915056,0.39532,2531.2,2530.8,3.2078]
[1729794915057,0.39537,2530.9,2530.8,3.2078]
[1729794915360,1.67795616,2530.9,2530.8,3.2078]
[1729794915959,2.49545616,2530.9,2530.8,3.2078]
[1729794916457,2.49545616,2530.9,2530.8,3.60318]
[1729794916658,2.10008616,2530.9,2530.8,3.60318]
[1729794917050,1.28258616,2532.2,2530.9,0.98843]
[1729794917258,1.28258616,2532.2,2531.0,2.08993616]
[1729794917259,1.28258616,2531.1,2531.0,2.08993616]
[1729794917456,0.39533,2531.2,2531.1,0.39534]
[1729794917756,0.39533,2531.2,2531.0,0.412]
[1729794917757,0.39532,2531.3,2531.2,0.39532]
[1729794917956,2.09058616,2531.4,2531.3,0.39531]
[1729794918161,3.43653155,2531.4,2531.3,0.39531]
[1729794918462,3.25347233,2531.4,2531.0,0.412]
[1729794918651,3.1901131,2531.4,2531.0,0.412]
[1729794918956,0.39531,2531.3,2531.2,0.39531]
[1729794919263,3.5854131,2531.4,2531.3,0.39531]
[1729794920360,0.4127,2531.4,2531.1,3.2078]
[1729794920662,3.5854031,2531.4,2531.3,0.39531]
[1729794921860,0.412,2531.5,2531.4,0.39529]
[1729794922060,1.9758,2532.3,2531.4,0.39529]
[1729794922061,0.4389,2532.0,2531.4,4.196]
[1729794922268,0.39519,2532.1,2532.0,0.3952]
[1729794922468,0.8932316,2532.1,2532.0,0.3952]
[1729794922660,0.4980416,2532.1,2531.6,0.98815]
[1729794922860,0.4347,2532.1,2531.6,0.98815]
[1729794923062,0.3952,2532.0,2531.9,0.3952]
[1729794923562,0.4347,2532.1,2531.6,0.98815]
[1729794923764,0.82989,2532.1,2532.0,0.3952]
[1729794923968,0.89323125,2532.1,2532.0,0.3952]
[1729794924361,0.06334125,2532.1,2532.0,0.3952]
[1729794924563,0.06334125,2532.1,2532.0,0.39519]
[1729794924564,0.39519,2532.1,2532.0,0.39519]
[1729794924762,0.39517,2532.2,2532.1,0.39518]
[1729794926463,0.39516,2532.3,2532.2,0.39516]
[1729794926964,0.39517,2532.2,2532.1,0.39517]
[1729794927264,0.39518,2532.1,2532.0,0.81859]
[1729794928966,2.7774131,2532.4,2532.0,0.4234]
[1729794929167,0.39517,2532.2,2532.1,0.39517]
[1729794929572,2.7774131,2532.4,2532.0,0.4234]
[1729794929771,0.39518,2532.1,2532.0,0.81859]
[1729794929972,0.39518,2532.1,2532.0,0.4234]
[1729794930170,3.7652631,2532.4,2531.7,3.2078]
[1729794930375,0.39519,2532.1,2532.0,0.39519]
[1729794930568,0.3952,2532.0,2531.9,0.3952]
[1729794931577,0.39521,2531.9,2531.8,0.82641]
[1729794931780,0.83791,2531.9,2531.8,0.4312]
[1729794932076,0.83791,2531.9,2531.8,0.82643]
[1729794932780,0.83791,2531.9,2531.8,0.4312]
[1729794933685,0.83791,2531.9,2531.8,0.82643]
[1729794934682,0.39523,2531.8,2531.7,3.2078]
[1729794934877,0.39523,2531.8,2531.7,0.39524]
[1729794940588,0.39523,2531.8,2531.7,3.60304]
[1729794940985,0.83793,2531.9,2531.8,0.39523]
[1729794941788,0.83793,2531.9,2531.8,0.79713]
[1729794942391,2.1194827,2531.9,2531.8,0.79713]
[1729794944585,0.4383,2532.1,2531.8,5.6330527]
[1729794944801,1.2815527,2532.0,2531.9,2.4907627]
[1729794946191,1.2815527,2532.0,2531.9,1.20921]
[1729794947887,1.2815527,2532.0,2531.9,6.4403627]
[1729794948290,1.2815527,2532.0,2531.9,2.4907627]
[1729794948496,1.2815527,2532.1,2532.0,0.3952]
[1729794948796,0.83097,2532.3,2532.2,0.39517]
[1729794948999,2.1125227,2532.3,2532.2,0.39517]
[1729794951092,1.7173527,2532.3,2531.9,2.4907627]
[1729794951295,1.7173527,2532.3,2531.9,1.20921]
[1729794951296,1.6767527,2532.0,2531.9,1.20921]
[1729794951892,1.2815527,2532.0,2531.9,1.20921]
[1729794953498,0.39521,2531.9,2531.8,0.79711]
[1729794953695,2.1038627,2531.9,2531.8,0.79711]
[1729794954997,2.1038627,2531.9,2531.7,4.01564]
[1729794954998,0.39523,2531.8,2531.7,4.01564]
[1729794955201,1.6767827,2531.8,2531.7,3.2078]
[1729794955698,0.39523,2531.8,2531.7,3.2078]
[1729794955897,1.6767827,2531.8,2531.7,3.2078]
[1729794956103,1.6767827,2531.8,2531.4,3.60308]
[1729794956104,0.39529,2531.5,2531.4,3.60308]
[1729794956298,1.6768427,2531.5,2531.4,3.60308]
[1729794957188,2.0810427,2531.5,2531.4,3.60308]
[1729794958306,0.79949,2531.5,2531.4,3.60308]
[1729794959599,0.79949,2531.5,2531.4,3.2078]
[1729794959901,0.79949,2531.5,2531.4,3.60309]
[1729794962109,0.79949,2531.5,2531.1,1.41725]
[1729794962110,0.39531,2531.3,2531.2,0.39531]
[1729794964400,0.39535,2531.0,2530.9,0.442]
[1729794964605,3.17225049,2531.0,2530.9,0.442]
[1729794965110,0.39538,2530.9,2530.8,0.39537]
[1729794966007,2.77690049,2531.0,2530.7,3.2078]
[1729794966210,3.60308049,2530.8,2530.7,3.2078]
[1729794968509,0.39543,2530.5,2530.4,0.39543]
[1729794968714,0.39543,2530.5,2530.3,3.2078]
[1729794968715,0.39545,2530.4,2530.3,3.60325]
[1729794968914,0.81735,2530.4,2530.3,3.60325]
[1729794969113,3.59425049,2530.4,2530.3,3.2078]
[1729794969616,3.59425049,2530.4,2530.3,3.60326]
[1729794970213,3.59425049,2530.4,2530.3,3.2078]
[1729794970715,3.59425049,2530.4,2530.3,3.60326]
[1729794971111,3.59425049,2530.4,2530.3,3.2078]
[1729794971418,3.59425049,2530.4,2530.3,3.60326]
[1729794972511,3.59425049,2530.4,2530.3,0.39546]
[1729794972925,3.59425049,2530.4,2530.2,3.6141]
[1729794972926,3.19880049,2530.4,2530.2,3.6141]
[1729794973118,0.39546,2530.3,2530.2,4.00956]
[1729794973420,0.83256,2530.3,2530.2,3.6141]
[1729794974215,0.83256,2530.3,2529.9,3.6266]
[1729794974216,0.844,2530.3,2529.9,3.6266]
[1729794974414,0.39551,2530.0,2529.9,4.0318]
[1729794975026,0.39551,2530.0,2529.9,3.613]
[1729794975624,0.39551,2530.0,2529.9,3.2078]
[1729794975828,0.39553,2529.9,2529.7,0.81014]
[1729794976027,0.81763,2529.9,2529.7,0.81014]
[1729794976224,0.4221,2529.9,2529.7,0.81015]
[1729794976422,0.81764,2529.9,2529.7,0.81015]
[1729794976623,0.81764,2529.9,2529.7,0.4146]
[1729794976829,0.81764,2529.9,2529.8,0.39554]
[1729794977330,0.4221,2529.9,2529.7,0.4146]
[1729794977531,0.39554,2529.8,2529.7,0.81014]
[1729794978028,0.39554,2529.8,2529.7,0.4146]
[1729794978224,0.39554,2529.8,2529.6,3.6245]
[1729794978225,0.39556,2529.7,2529.6,3.6245]
[1729794978820,0.39556,2529.7,2529.6,3.2078]
[1729794981325,0.39556,2529.7,2529.6,3.60337]
[1729794981627,0.39556,2529.7,2529.6,3.2078]
[1729794982422,0.39558,2529.6,2529.5,0.39558]
[1729794982627,0.4221,2529.9,2529.4,0.849]
[1729794982827,0.39555,2529.8,2529.7,0.39556]
[1729794983024,0.39555,2529.8,2529.6,3.2078]
[1729794983525,0.39555,2529.8,2529.7,0.39556]
[1729794985026,0.39555,2529.8,2529.7,0.82716]
[1729794985526,0.39555,2529.8,2529.7,0.4316]
[1729794986635,0.39556,2529.7,2529.6,3.2078]
[1729794987232,0.39556,2529.7,2529.6,3.60337]
[1729794987623,0.4221,2529.9,2529.6,3.2078]
[1729794987829,0.39552,2530.0,2529.9,0.39552]
[1729794988837,0.3955,2530.1,2530.0,0.3955]
[1729794989028,4.02869,2530.2,2530.1,0.39549]
[1729794989234,0.3955,2530.1,2530.0,0.3955]
[1729794989436,3.6332,2530.2,2529.9,0.4407]
[1729794989736,0.39549,2530.1,2530.0,0.3955]
[1729794990038,2.77690049,2530.1,2529.6,3.2078]
[1729794990234,0.39554,2529.9,2529.8,0.39553]
[1729794991932,0.39555,2529.8,2529.7,0.39554]
[1729794992729,3.17240049,2530.1,2530.0,0.39551]
[1729794994037,2.77690049,2530.1,2529.8,3.2078]
[1729794994240,0.39552,2530.0,2529.9,0.39551]
[1729794994542,2.77690049,2530.1,2529.8,3.2078]
[1729794994747,3.17240049,2530.1,2530.0,0.39551]
[1729794995943,0.39552,2530.0,2529.9,0.39552]
[1729794997541,0.39552,2530.0,2529.9,0.39551]
[1729794998338,0.39552,2530.0,2529.8,3.2078]
[1729794998339,0.39552,2529.9,2529.8,3.60333]
[1729794998735,0.39552,2529.9,2529.8,3.2078]
[1729794999244,0.39552,2529.9,2529.8,3.60334]
[1729794999431,0.39552,2529.9,2529.8,3.2078]
[1729795001549,0.39554,2529.8,2529.7,4.04885]
[1729795003054,0.39552,2530.0,2529.9,0.39551]
[1729795004448,0.39554,2529.9,2529.8,0.39553]
[1729795006145,0.39554,2529.8,2529.7,4.04885]
[1729795006349,0.80404,2529.8,2529.7,4.04885]
[1729795006750,0.4085,2529.8,2529.7,4.04885]
[1729795006942,0.39554,2529.8,2529.7,4.04885]
[1729795007138,0.446,2530.0,2529.7,4.04885]
[1729795007139,0.39554,2529.9,2529.8,0.39553]
[1729795007547,0.39554,2529.8,2529.7,4.04885]
[1729795007744,0.39554,2529.9,2529.8,0.39553]
[1729795008253,0.39554,2529.8,2529.7,4.04884]
[1729795014459,0.39554,2529.8,2529.7,3.6533]
[1729795014849,0.39554,2529.8,2529.7,3.2078]
[1729795015045,0.39564,2529.3,2529.2,0.39562]
[1729795015253,0.39564,2529.3,2529.2,0.84192]
[1729795015546,0.39563,2529.2,2529.1,0.4045]
[1729795015753,0.39563,2529.2,2529.0,0.39565]
[1729795015754,0.39565,2529.1,2529.0,0.39565]
[1729795016250,0.39565,2529.1,2528.9,1.24587]
[1729795016251,0.39567,2529.0,2528.9,1.24587]
[1729795016455,1.67857631,2529.0,2528.9,1.24587]
[1729795017851,0.4338,2529.2,2528.9,0.8502]
[1729795018060,3.60343,2529.3,2529.2,0.39563]
[1729795018245,3.2078,2529.3,2529.2,0.39563]
[1729795018554,0.39561,2529.4,2529.3,0.3956]
[1729795018756,3.60855866,2529.5,2529.4,0.3956]
[1729795019255,3.21295866,2529.5,2529.4,0.3956]
[1729795019554,0.39558,2529.6,2529.5,0.39559]
[1729795021154,1.2471,2529.8,2529.7,0.39556]
[1729795021155,0.81695,2529.8,2529.7,0.39556]
[1729795021855,0.4214,2529.8,2529.7,0.39556]
[1729795022156,3.17469866,2529.9,2529.8,0.39554]
[1729795024558,2.77915866,2529.9,2529.4,1.3913]
[1729795024858,2.77915866,2529.6,2529.5,0.39559]
[1729795025357,3.19905866,2529.6,2529.5,4.34919]
[1729795025553,2.77915866,2529.6,2529.5,4.34919]
[1729795025947,0.39554,2529.8,2529.5,4.34919]
[1729795026153,3.17469866,2529.8,2529.7,0.39556]
[1729795028557,0.39557,2529.7,2529.6,0.39556]
[1729795029061,3.9528,2529.7,2529.4,0.4023]
[1729795029264,3.58194866,2529.6,2529.5,0.39558]
[1729795030765,0.80279,2529.6,2529.5,0.39558]
[1729795031469,0.4072,2529.6,2529.5,0.39558]
[1729795031667,0.80277,2529.6,2529.5,0.39558]
[1729795032171,3.17470866,2529.8,2529.7,0.39556]
[1729795032368,3.60334,2529.9,2529.8,0.39554]
[1729795032567,3.2078,2529.9,2529.8,0.39554]
[1729795033266,3.2078,2529.9,2529.8,0.80924]
[1729795033472,3.60332,2529.9,2529.8,0.80924]
[1729795033772,3.60332,2529.9,2529.8,0.39554]
[1729795036273,0.39552,2529.9,2529.8,0.39554]